[Event "Skol-SM 2021, grupp B"]
[Site "Helsingborg Arena, Helsingborg, Sweden"]
[Date "2021.10.09"]
[Round "6.1"]
[White "Olsson, William"]
[Black "Falkevall, Axel"]
[Result "1-0"]
[TimeControl "45 minutes + 10 seconds per move from move one."]
[WhiteTitle "FM"]
[BlackTitle "CM"]
[WhiteFideId "1741721"]
[BlackFideId "1735560"]
[WhiteElo "1944"]
[BlackElo "1948"]

1. d4 {[%clk 00:45:17]} {[%emt 00:00:03]} Nf6 {[%clk 00:45:13]} {[%emt
00:00:07]} 2. c4 {[%clk 00:45:26]} {[%emt 00:00:02]} g6 {[%clk 00:45:13]}
{[%emt 00:00:10]} 3. Nc3 {[%clk 00:45:30]} {[%emt 00:00:06]} Bg7 {[%clk
00:45:14]} {[%emt 00:00:08]} 4. Nf3 {[%clk 00:45:32]} {[%emt 00:00:08]} O-O
{[%clk 00:45:03]} {[%emt 00:00:20]} 5. e4 {[%clk 00:45:25]} {[%emt 00:00:17]}
d6 {[%clk 00:45:07]} {[%emt 00:00:06]} 6. Be2 {[%clk 00:45:32]} {[%emt
00:00:04]} Nbd7 {[%clk 00:45:11]} {[%emt 00:00:05]} 7. O-O {[%clk 00:45:27]}
{[%emt 00:00:15]} e5 {[%clk 00:45:15]} {[%emt 00:00:06]} 8. Rb1 {[%clk
00:43:39]} {[%emt 00:01:58]} Qe7 {[%clk 00:43:01]} {[%emt 00:02:23]} 9. d5
{[%clk 00:43:35]} {[%emt 00:00:15]} Nc5 {[%clk 00:42:31]} {[%emt 00:00:40]} 10.
Nd2 {[%clk 00:42:39]} {[%emt 00:01:06]} a5 {[%clk 00:41:39]} {[%emt 00:01:02]}
11. b3 {[%clk 00:42:48]} {[%emt 00:00:02]} Bh6 {[%clk 00:40:58]} {[%emt
00:00:51]} 12. Qc2 {[%clk 00:38:36]} {[%emt 00:04:22]} Nh5 {[%clk 00:35:16]}
{[%emt 00:05:51]} 13. Bxh5 {[%clk 00:36:38]} {[%emt 00:02:09]} gxh5 {[%clk
00:35:21]} {[%emt 00:00:05]} 14. Nf3 {[%clk 00:36:03]} {[%emt 00:00:45]} Bxc1
{[%clk 00:34:57]} {[%emt 00:00:34]} 15. Rfxc1 {[%clk 00:35:26]} {[%emt
00:00:47]} f5 {[%clk 00:34:24]} {[%emt 00:00:43]} 16. Nd2 {[%clk 00:35:05]}
{[%emt 00:00:31]} f4 {[%clk 00:31:46]} {[%emt 00:02:47]} 17. f3 {[%clk
00:34:28]} {[%emt 00:00:48]} Kh8 {[%clk 00:30:37]} {[%emt 00:01:18]} 18. Kh1
{[%clk 00:32:04]} {[%emt 00:02:33]} Rg8 {[%clk 00:27:36]} {[%emt 00:03:11]} 19.
Rg1 {[%clk 00:29:57]} {[%emt 00:02:18]} Bd7 {[%clk 00:25:24]} {[%emt 00:02:22]}
20. a3 {[%clk 00:29:24]} {[%emt 00:00:43]} Rg6 {[%clk 00:23:50]} {[%emt
00:01:43]} 21. b4 {[%clk 00:22:34]} {[%emt 00:07:01]} axb4 {[%clk 00:23:43]}
{[%emt 00:00:16]} 22. axb4 {[%clk 00:22:42]} {[%emt 00:00:02]} Na6 {[%clk
00:23:22]} {[%emt 00:00:30]} 23. Ne2 {[%clk 00:20:12]} {[%emt 00:02:39]} Rag8
{[%clk 00:21:49]} {[%emt 00:01:44]} 24. Qc3 {[%clk 00:18:52]} {[%emt 00:01:31]}
Qg7 {[%clk 00:19:48]} {[%emt 00:02:10]} 25. g3 {[%clk 00:18:47]} {[%emt
00:00:16]} fxg3 {[%clk 00:18:55]} {[%emt 00:01:03]} 26. Rxg3 {[%clk 00:17:45]}
{[%emt 00:01:12]} Rxg3 {[%clk 00:18:35]} {[%emt 00:00:29]} 27. hxg3 {[%clk
00:17:54]} {[%emt 00:00:01]} h4 {[%clk 00:15:35]} {[%emt 00:03:10]} 28. Kg2
{[%clk 00:18:01]} {[%emt 00:00:02]} hxg3 {[%clk 00:14:32]} {[%emt 00:01:14]} 29.
Rh1 {[%clk 00:18:09]} {[%emt 00:00:02]} c5 {[%clk 00:13:04]} {[%emt 00:01:38]}
30. b5 {[%clk 00:14:12]} {[%emt 00:04:08]} Nb4 {[%clk 00:12:47]} {[%emt
00:00:27]} 31. Nf1 {[%clk 00:12:48]} {[%emt 00:01:33]} Ra8 {[%clk 00:12:12]}
{[%emt 00:00:45]} 32. Nfxg3 {[%clk 00:12:56]} {[%emt 00:00:02]} Ra2 {[%clk
00:11:29]} {[%emt 00:00:54]} 33. Qe3 {[%clk 00:12:52]} {[%emt 00:00:13]} Rc2
{[%clk 00:10:19]} {[%emt 00:01:20]} 34. Ra1 {[%clk 00:09:33]} {[%emt 00:03:29]}
h6 {[%clk 00:10:13]} {[%emt 00:00:15]} 35. Rc1 {[%clk 00:09:35]} {[%emt
00:00:09]} Ra2 {[%clk 00:09:48]} {[%emt 00:00:34]} 36. Kf2 {[%clk 00:07:50]}
{[%emt 00:01:55]} Qg5 {[%clk 00:07:23]} {[%emt 00:02:35]} 37. Qxg5 {[%clk
00:06:14]} {[%emt 00:01:47]} hxg5 {[%clk 00:07:30]} {[%emt 00:00:03]} 38. Rc3
{[%clk 00:06:00]} {[%emt 00:00:24]} Kg7 {[%clk 00:06:58]} {[%emt 00:00:42]} 39.
Nf1 {[%clk 00:05:27]} {[%emt 00:00:42]} Nc2 {[%clk 00:04:41]} {[%emt 00:02:27]}
40. Nc1 {[%clk 00:05:07]} {[%emt 00:00:31]} Rb2 {[%clk 00:04:50]} {[%emt
00:00:02]} 41. Rb3 {[%clk 00:04:04]} {[%emt 00:01:13]} Rxb3 {[%clk 00:04:52]}
{[%emt 00:00:07]} 42. Nxb3 {[%clk 00:04:13]} {[%emt 00:00:01]} b6 {[%clk
00:04:25]} {[%emt 00:00:37]} 43. Ne3 {[%clk 00:03:57]} {[%emt 00:00:26]} Nd4
{[%clk 00:04:00]} {[%emt 00:00:36]} 44. Nd2 {[%clk 00:02:40]} {[%emt 00:01:27]}
Be8 {[%clk 00:03:06]} {[%emt 00:01:03]} 45. Nd1 {[%clk 00:02:32]} {[%emt
00:00:18]} Kf6 {[%clk 00:02:08]} {[%emt 00:01:08]} 46. Nc3 {[%clk 00:02:40]}
{[%emt 00:00:02]} Ke7 {[%clk 00:02:05]} {[%emt 00:00:13]} 47. Na4 {[%clk
00:02:49]} {[%emt 00:00:02]} Kd8 {[%clk 00:02:13]} {[%emt 00:00:02]} 48. Nxb6
{[%clk 00:02:58]} {[%emt 00:00:02]} Kc7 {[%clk 00:02:22]} 49. Na4 {[%clk
00:03:04]} {[%emt 00:00:04]} Bd7 {[%clk 00:02:25]} {[%emt 00:00:07]} 50. Ke3
{[%clk 00:03:02]} {[%emt 00:00:12]} Kb7 {[%clk 00:02:31]} {[%emt 00:00:05]} 51.
Kd3 {[%clk 00:01:19]} {[%emt 00:01:54]} Bh3 {[%clk 00:02:22]} {[%emt 00:00:18]}
52. Ke3 {[%clk 00:01:16]} {[%emt 00:00:13]} Kc7 {[%clk 00:02:21]} {[%emt
00:00:11]} 53. Kf2 {[%clk 00:01:18]} {[%emt 00:00:08]} Bd7 {[%clk 00:01:31]}
{[%emt 00:01:01]} 54. Nf1 {[%clk 00:00:51]} {[%emt 00:00:36]} Be8 {[%clk
00:01:28]} {[%emt 00:00:13]} 55. Ng3 {[%clk 00:00:28]} {[%emt 00:00:33]} Bg6
{[%clk 00:01:32]} {[%emt 00:00:06]} 56. Nf1 {[%emt 00:00:29]} Bh5 {[%clk
00:01:22]} {[%emt 00:00:17]} 57. Nd2 {[%clk 00:00:20]} {[%emt 00:00:02]} g4
{[%clk 00:01:11]} {[%emt 00:00:21]} 58. fxg4 {[%clk 00:00:27]} Bxg4 {[%clk
00:01:21]} 59. Ke3 {[%clk 00:00:14]} {[%emt 00:00:24]} Kb7 {[%clk 00:01:12]}
{[%emt 00:00:19]} 60. Kd3 {[%clk 00:00:20]} {[%emt 00:00:02]} Be2+ {[%clk
00:00:49]} {[%emt 00:00:34]} 61. Kc3 {[%clk 00:00:24]} {[%emt 00:00:06]} Bg4
{[%clk 00:00:38]} {[%emt 00:00:21]} 62. Nb2 {[%clk 00:00:30]} {[%emt 00:00:04]}
Ne2+ {[%clk 00:00:40]} {[%emt 00:00:08]} 63. Kd3 {[%clk 00:00:34]} {[%emt
00:00:06]} Nd4 {[%clk 00:00:48]} {[%emt 00:00:02]} 64. Na4 {[%clk 00:00:26]}
{[%emt 00:00:18]} Be2+ {[%clk 00:00:53]} {[%emt 00:00:05]} 65. Ke3 {[%clk
00:00:35]} {[%emt 00:00:01]} Bg4 {[%clk 00:00:51]} {[%emt 00:00:11]} 66. Nb2
{[%clk 00:00:12]} {[%emt 00:00:34]} Kb6 {[%clk 00:00:45]} {[%emt 00:00:17]} 67.
Nd3 {[%clk 00:00:18]} {[%emt 00:00:03]} Nc2+ {[%clk 00:00:40]} {[%emt
00:00:14]} 68. Kf2 {[%clk 00:00:21]} {[%emt 00:00:06]} Na3 {[%clk 00:00:30]}
{[%emt 00:00:21]} 69. Nb2 {[%clk 00:00:12]} {[%emt 00:00:20]} Nc2 {[%clk
00:00:32]} {[%emt 00:00:07]} 70. Nb3 {[%clk 00:00:13]} {[%emt 00:00:08]} Nd4
{[%clk 00:00:25]} {[%emt 00:00:17]} 71. Na4+ {[%clk 00:00:14]} {[%emt
00:00:09]} Ka7 {[%clk 00:00:30]} {[%emt 00:00:05]} 72. Na5 {[%clk 00:00:18]}
{[%emt 00:00:06]} Bd1 {[%clk 00:00:36]} {[%emt 00:00:04]} 73. b6+ {[%clk
00:00:16]} {[%emt 00:00:12]} Ka6 {[%clk 00:00:28]} {[%emt 00:00:19]} 74. b7
{[%clk 00:00:25]} {[%emt 00:00:01]} Kb6 75. Nxb6 {[%clk 00:00:30]} Nb3 {[%clk
00:00:36]} {[%emt 00:00:10]} 76. Nd7 {[%clk 00:00:38]} {[%emt 00:00:02]} 1-0

[Event "Skol-SM 2021, grupp B"]
[Site "Helsingborg Arena, Helsingborg, Sweden"]
[Date "2021.10.10"]
[Round "7.3"]
[White "Falkevall, Axel"]
[Black "Strom-Engdahl, Alexander"]
[Result "1-0"]
[TimeControl "45 minutes + 10 seconds per move from move one."]
[WhiteTitle "CM"]
[WhiteFideId "1735560"]
[BlackFideId "1741586"]
[WhiteElo "1948"]
[BlackElo "1822"]

1. d4 {[%clk 00:45:18]} {[%emt 00:00:01]} Nf6 {[%clk 00:45:02]} {[%emt
00:00:18]} 2. c4 {[%clk 00:45:20]} {[%emt 00:00:09]} e6 {[%clk 00:44:54]}
{[%emt 00:00:17]} 3. Nc3 {[%clk 00:45:24]} {[%emt 00:00:06]} Bb4 {[%clk
00:44:42]} {[%emt 00:00:21]} 4. e3 {[%clk 00:45:28]} {[%emt 00:00:06]} b6
{[%clk 00:44:42]} {[%emt 00:00:10]} 5. Nge2 {[%clk 00:44:59]} {[%emt 00:00:39]}
O-O {[%clk 00:43:10]} {[%emt 00:01:43]} 6. a3 {[%clk 00:44:55]} {[%emt
00:00:14]} Bxc3+ {[%clk 00:40:40]} {[%emt 00:02:40]} 7. Nxc3 {[%clk 00:44:41]}
{[%emt 00:00:24]} Bb7 {[%clk 00:40:37]} {[%emt 00:00:13]} 8. Bd3 {[%clk
00:39:22]} {[%emt 00:05:29]} d5 {[%clk 00:35:23]} {[%emt 00:05:25]} 9. cxd5
{[%clk 00:38:50]} {[%emt 00:00:41]} exd5 {[%clk 00:34:57]} {[%emt 00:00:35]} 10.
O-O {[%clk 00:35:55]} {[%emt 00:03:06]} c5 {[%clk 00:31:17]} {[%emt 00:03:51]}
11. dxc5 {[%clk 00:32:25]} {[%emt 00:03:40]} bxc5 {[%clk 00:31:12]} {[%emt
00:00:14]} 12. b4 {[%clk 00:31:26]} {[%emt 00:01:09]} Nbd7 {[%clk 00:25:04]}
{[%emt 00:06:17]} 13. Bb2 {[%clk 00:25:40]} {[%emt 00:05:56]} Rc8 {[%clk
00:21:50]} {[%emt 00:03:25]} 14. Bf5 {[%clk 00:20:08]} {[%emt 00:05:42]} cxb4
{[%clk 00:16:36]} {[%emt 00:05:24]} 15. axb4 {[%clk 00:14:36]} {[%emt
00:05:42]} a6 {[%clk 00:11:16]} {[%emt 00:05:29]} 16. Ne2 {[%clk 00:12:00]}
{[%emt 00:02:46]} Rb8 {[%clk 00:08:02]} {[%emt 00:03:24]} 17. Nf4 {[%clk
00:10:14]} {[%emt 00:01:56]} Qe7 {[%clk 00:05:46]} {[%emt 00:02:26]} 18. Qf3
{[%clk 00:03:12]} {[%emt 00:07:13]} Ne5 {[%clk 00:04:36]} {[%emt 00:01:20]} 19.
Qg3 {[%clk 00:02:39]} {[%emt 00:00:43]} Ng6 {[%clk 00:04:35]} {[%emt 00:00:10]}
20. Rfc1 {[%clk 00:02:25]} {[%emt 00:00:24]} Ne4 {[%clk 00:03:37]} {[%emt
00:01:09]} 21. Bxe4 {[%clk 00:02:19]} {[%emt 00:00:16]} Qxe4 {[%clk 00:03:34]}
{[%emt 00:00:13]} 22. Nh5 {[%clk 00:02:15]} {[%emt 00:00:14]} Rbc8 {[%clk
00:02:28]} {[%emt 00:01:16]} 23. Bxg7 {[%clk 00:01:53]} {[%emt 00:00:32]} Qf5
{[%clk 00:02:16]} {[%emt 00:00:23]} 24. Bxf8 {[%clk 00:01:52]} {[%emt
00:00:11]} Rxf8 {[%clk 00:02:10]} {[%emt 00:00:16]} 25. Rc7 {[%clk 00:01:11]}
{[%emt 00:00:51]} Bc8 {[%clk 00:01:29]} {[%emt 00:00:52]} 26. Nf4 {[%clk
00:01:06]} {[%emt 00:00:15]} Qe5 {[%clk 00:01:01]} {[%emt 00:00:38]} 27. Rac1
{[%clk 00:01:15]} Bf5 {[%clk 00:00:46]} {[%emt 00:00:25]} 28. Nxg6 {[%clk
00:01:19]} {[%emt 00:00:05]} Qxg3 {[%clk 00:00:49]} {[%emt 00:00:07]} 29. Ne7+
{[%clk 00:01:28]} 1-0

[Event "Skol-SM 2021, grupp B"]
[Site "Helsingborg Arena, Helsingborg, Sweden"]
[Date "2021.10.10"]
[Round "8.1"]
[White "Dingertz, Erik"]
[Black "Ostlund, Joar"]
[Result "0-1"]
[TimeControl "45 minutes + 10 seconds per move from move one."]
[WhiteFideId "1741578"]
[BlackFideId "1735020"]
[WhiteElo "1761"]
[BlackElo "1700"]

1. c4 {[%clk 00:45:15]} {[%emt 00:00:05]} Nf6 {[%clk 00:45:10]} {[%emt
00:00:10]} 2. Nc3 {[%clk 00:45:19]} {[%emt 00:00:06]} e6 {[%clk 00:45:12]}
{[%emt 00:00:09]} 3. g3 {[%clk 00:45:28]} {[%emt 00:00:02]} d5 {[%clk
00:45:11]} {[%emt 00:00:10]} 4. Bg2 {[%clk 00:45:29]} {[%emt 00:00:09]} Be7
{[%clk 00:44:14]} {[%emt 00:01:06]} 5. b3 {[%clk 00:45:32]} {[%emt 00:00:07]}
d4 {[%clk 00:43:42]} {[%emt 00:00:42]} 6. Ne4 {[%clk 00:44:07]} {[%emt
00:01:36]} Nxe4 {[%clk 00:42:41]} {[%emt 00:01:11]} 7. Bxe4 {[%clk 00:44:15]}
{[%emt 00:00:01]} O-O {[%clk 00:42:33]} {[%emt 00:00:18]} 8. e3 {[%clk
00:43:36]} {[%emt 00:00:50]} f5 {[%clk 00:40:55]} {[%emt 00:01:48]} 9. Bg2
{[%clk 00:43:23]} {[%emt 00:00:22]} d3 {[%clk 00:35:07]} {[%emt 00:05:58]} 10.
Bb2 {[%clk 00:41:35]} {[%emt 00:01:58]} Nc6 {[%clk 00:33:14]} {[%emt 00:02:03]}
11. Bxc6 {[%clk 00:29:53]} {[%emt 00:11:52]} bxc6 {[%clk 00:33:23]} {[%emt
00:00:01]} 12. f4 {[%clk 00:30:02]} {[%emt 00:00:01]} Bb7 {[%clk 00:32:20]}
{[%emt 00:01:12]} 13. Nf3 {[%clk 00:30:09]} {[%emt 00:00:02]} c5 {[%clk
00:31:05]} {[%emt 00:01:26]} 14. O-O {[%clk 00:30:16]} {[%emt 00:00:03]} Bf6
{[%clk 00:30:35]} {[%emt 00:00:40]} 15. Ne5 {[%clk 00:29:04]} {[%emt 00:01:21]}
Qe8 {[%clk 00:28:22]} {[%emt 00:02:23]} 16. Kf2 {[%clk 00:25:18]} {[%emt
00:03:56]} Be4 {[%clk 00:24:40]} {[%emt 00:03:53]} 17. Rg1 {[%clk 00:23:50]}
{[%emt 00:01:38]} a5 {[%clk 00:22:33]} {[%emt 00:02:17]} 18. h3 {[%clk
00:21:41]} {[%emt 00:02:18]} a4 {[%clk 00:17:40]} {[%emt 00:05:04]} 19. g4
{[%clk 00:19:23]} {[%emt 00:02:28]} Qc8 {[%clk 00:13:35]} {[%emt 00:04:14]} 20.
g5 {[%clk 00:18:36]} {[%emt 00:00:57]} Bxe5 {[%clk 00:13:32]} {[%emt 00:00:13]}
21. Bxe5 {[%clk 00:18:44]} {[%emt 00:00:02]} Qd7 {[%clk 00:08:04]} {[%emt
00:05:38]} 22. Qc1 {[%clk 00:14:15]} {[%emt 00:04:39]} Bb7 {[%clk 00:05:56]}
{[%emt 00:02:18]} 23. Qc3 {[%clk 00:12:46]} {[%emt 00:01:40]} axb3 {[%clk
00:04:04]} {[%emt 00:02:02]} 24. Qxb3 {[%clk 00:11:23]} {[%emt 00:01:32]} Be4
{[%clk 00:03:17]} {[%emt 00:00:57]} 25. Qb5 {[%clk 00:09:07]} {[%emt 00:02:26]}
Qe7 {[%clk 00:02:24]} {[%emt 00:01:02]} 26. Qb2 {[%clk 00:07:19]} {[%emt
00:01:59]} Rfb8 {[%clk 00:02:04]} {[%emt 00:00:30]} 27. Qc3 {[%clk 00:07:28]}
{[%emt 00:00:02]} Rb4 {[%clk 00:01:32]} {[%emt 00:00:43]} 28. a3 {[%clk
00:06:53]} {[%emt 00:00:45]} Rb6 {[%clk 00:01:21]} {[%emt 00:00:21]} 29. a4
{[%clk 00:05:59]} {[%emt 00:01:04]} Rab8 {[%clk 00:01:14]} {[%emt 00:00:17]} 30.
a5 {[%clk 00:05:58]} {[%emt 00:00:11]} Rb3 {[%clk 00:01:17]} {[%emt 00:00:07]}
31. Qc1 {[%clk 00:06:06]} {[%emt 00:00:01]} Qd7 {[%clk 00:00:42]} {[%emt
00:00:46]} 32. Ra3 {[%clk 00:04:01]} {[%emt 00:02:15]} Ba8 {[%clk 00:00:33]}
{[%emt 00:00:19]} 33. Rxb3 {[%clk 00:02:59]} {[%emt 00:01:11]} Rxb3 {[%clk
00:00:42]} {[%emt 00:00:01]} 34. Bc3 {[%clk 00:02:14]} {[%emt 00:00:55]} Qc6
{[%clk 00:00:50]} {[%emt 00:00:02]} 35. Qd1 {[%clk 00:02:22]} {[%emt 00:00:01]}
Rb1 {[%clk 00:00:48]} {[%emt 00:00:12]} 36. Qf3 {[%clk 00:01:39]} {[%emt
00:00:54]} Qxf3# {[%clk 00:00:54]} {[%emt 00:00:03]} 37. Kxf3 {[%clk 00:01:48]}
0-1

[Event "Skol-SM 2021, grupp B"]
[Site "Helsingborg Arena, Helsingborg, Sweden"]
[Date "2021.10.10"]
[Round "8.3"]
[White "Olsson, William"]
[Black "Mitra, Akash"]
[Result "1-0"]
[TimeControl "45 minutes + 10 seconds per move from move one."]
[WhiteTitle "FM"]
[WhiteFideId "1741721"]
[BlackFideId "1726714"]
[WhiteElo "1944"]
[BlackElo "1776"]

1. c4 {[%clk 00:45:19]} {[%emt 00:00:01]} Nf6 {[%clk 00:44:59]} {[%emt
00:00:22]} 2. Nc3 {[%clk 00:45:27]} {[%emt 00:00:02]} e6 {[%clk 00:45:07]}
{[%emt 00:00:02]} 3. d4 {[%clk 00:45:07]} {[%emt 00:00:30]} Bb4 {[%clk
00:45:15]} {[%emt 00:00:02]} 4. e3 {[%clk 00:45:15]} {[%emt 00:00:02]} b6
{[%clk 00:45:22]} {[%emt 00:00:04]} 5. Nge2 {[%clk 00:45:22]} {[%emt 00:00:02]}
Bb7 {[%clk 00:45:27]} {[%emt 00:00:06]} 6. a3 {[%clk 00:45:27]} {[%emt
00:00:04]} Bxc3+ {[%clk 00:45:32]} {[%emt 00:00:05]} 7. Nxc3 {[%clk 00:45:36]}
{[%emt 00:00:02]} O-O {[%clk 00:45:23]} {[%emt 00:00:19]} 8. d5 {[%clk
00:45:27]} {[%emt 00:00:19]} exd5 {[%clk 00:44:42]} {[%emt 00:00:51]} 9. cxd5
{[%clk 00:45:33]} {[%emt 00:00:04]} d6 {[%clk 00:44:16]} {[%emt 00:00:36]} 10.
Be2 {[%clk 00:45:35]} {[%emt 00:00:08]} c5 {[%clk 00:44:02]} {[%emt 00:00:24]}
11. O-O {[%clk 00:44:18]} {[%emt 00:01:26]} Nbd7 {[%clk 00:43:29]} {[%emt
00:00:44]} 12. e4 {[%clk 00:44:24]} {[%emt 00:00:04]} Re8 {[%clk 00:43:34]}
{[%emt 00:00:06]} 13. f3 {[%clk 00:43:40]} {[%emt 00:00:53]} a6 {[%clk
00:42:34]} {[%emt 00:01:11]} 14. a4 {[%clk 00:43:49]} {[%emt 00:00:01]} Qc7
{[%clk 00:42:14]} {[%emt 00:00:30]} 15. Be3 {[%clk 00:41:22]} {[%emt 00:02:36]}
Rab8 {[%clk 00:40:51]} {[%emt 00:01:34]} 16. b3 {[%clk 00:40:46]} {[%emt
00:00:45]} Ne5 {[%clk 00:38:54]} {[%emt 00:02:07]} 17. Bf2 {[%clk 00:37:27]}
{[%emt 00:03:28]} Qd7 {[%clk 00:35:47]} {[%emt 00:03:18]} 18. Bh4 {[%clk
00:36:49]} {[%emt 00:00:48]} Kh8 {[%clk 00:33:11]} {[%emt 00:02:47]} 19. Qd2
{[%clk 00:34:42]} {[%emt 00:02:13]} Ng6 {[%clk 00:29:16]} {[%emt 00:04:08]} 20.
Bg5 {[%clk 00:33:57]} {[%emt 00:00:53]} Qe7 {[%clk 00:26:44]} {[%emt 00:02:44]}
21. Rae1 {[%clk 00:33:29]} {[%emt 00:00:38]} Qf8 {[%clk 00:26:43]} {[%emt
00:00:11]} 22. Bc4 {[%clk 00:32:01]} {[%emt 00:01:38]} h6 {[%clk 00:25:05]}
{[%emt 00:01:49]} 23. Be3 {[%clk 00:29:42]} {[%emt 00:02:26]} Re7 {[%clk
00:23:36]} {[%emt 00:01:42]} 24. Qe2 {[%clk 00:28:58]} {[%emt 00:00:52]} Ra8
{[%clk 00:23:44]} {[%emt 00:00:03]} 25. Qf2 {[%clk 00:28:14]} {[%emt 00:00:54]}
Bc8 {[%clk 00:23:19]} {[%emt 00:00:35]} 26. Bd2 {[%clk 00:27:11]} {[%emt
00:01:12]} Bd7 {[%clk 00:22:54]} {[%emt 00:00:36]} 27. Qe2 {[%clk 00:27:07]}
{[%emt 00:00:14]} Qc8 {[%clk 00:22:20]} {[%emt 00:00:43]} 28. f4 {[%clk
00:24:42]} {[%emt 00:02:37]} Ne8 {[%clk 00:16:26]} {[%emt 00:06:04]} 29. Bd3
{[%clk 00:23:52]} {[%emt 00:01:00]} Nc7 {[%clk 00:16:03]} {[%emt 00:00:33]} 30.
e5 {[%clk 00:23:25]} {[%emt 00:00:36]} Bf5 {[%clk 00:14:36]} {[%emt 00:01:38]}
31. Qf3 {[%clk 00:22:34]} {[%emt 00:01:01]} Bxd3 {[%clk 00:13:44]} {[%emt
00:01:02]} 32. Qxd3 {[%clk 00:22:42]} {[%emt 00:00:01]} Ne8 {[%clk 00:09:01]}
{[%emt 00:04:53]} 33. e6 {[%clk 00:22:09]} {[%emt 00:00:42]} Nf8 {[%clk
00:08:47]} {[%emt 00:00:25]} 34. f5 {[%clk 00:22:17]} {[%emt 00:00:02]} Nf6
{[%clk 00:08:17]} {[%emt 00:00:40]} 35. Ne4 {[%clk 00:21:55]} {[%emt 00:00:32]}
N8h7 {[%clk 00:08:24]} {[%emt 00:00:04]} 36. Nxd6 {[%clk 00:22:01]} {[%emt
00:00:03]} 1-0